fUSD/lending_fUSD_20250522
["ID","MTS","AMOUNT","RATE_DAILY","PERIOD"]
[361962142,1747909871517,-155.27957,0.0003315,7]
[361962143,1747909871528,-56.08073557,0.00033424,5]
[361962144,1747909871538,-695.8,0.00033424,5]
[361962145,1747909871548,-946.97,0.00033424,5]
[361962146,1747909871557,-420.0,0.00033424,5]
[361962147,1747909871568,-420.0,0.00033424,5]
[361962148,1747909871578,-420.0,0.00033424,5]
[361962149,1747909871588,-572.74,0.00033424,5]
[361962150,1747909871598,-424.835292,0.00033424,7]
[361962151,1747909871608,-514.26,0.00033424,5]
[361962152,1747909871619,-424.835292,0.00033424,7]
[361962153,1747909871628,-890.57,0.00033424,5]
[361962154,1747909871638,-424.835292,0.00033424,7]
[361962155,1747909871648,-976.4,0.00033424,5]
[361962156,1747909871659,-420.0,0.00033424,5]
[361962157,1747909871669,-424.835292,0.00033424,7]
[361962158,1747909871679,-424.835292,0.00033424,7]
[361962159,1747909871689,-424.835292,0.00033424,7]
[361962160,1747909871699,-1102.92,0.00033424,5]
[361962161,1747909871712,-1024.14,0.00033424,5]
[361962162,1747909871722,-420.0,0.00033424,5]
[361962163,1747909871733,-420.0,0.00033424,5]
[361962164,1747909871743,-420.0,0.00033424,5]
[361962165,1747909871754,-420.0,0.00033424,5]
[361962166,1747909871764,-881.15,0.00033424,5]
[361962167,1747909871774,-860.62,0.00033424,5]
[361962168,1747909871785,-420.0,0.00033424,5]
[361962169,1747909871794,-1164.82984012,0.00033424,5]
[361962170,1747909871808,-72.53015988,0.00033424,5]
[361962171,1747909871820,-606.36,0.00033424,5]
[361962172,1747909871830,-194.11227228,0.00033424,5]
[361962173,1747909871840,-420.0,0.00033424,5]
[361962174,1747909871850,-420.0,0.00033424,5]
[361962175,1747909871860,-463.36,0.00033424,5]
[361962176,1747909871869,-703.56,0.00033424,5]
[361962177,1747909871879,-420.0,0.00033424,5]
[361962178,1747909871890,-420.0,0.00033424,5]
[361962179,1747909871900,-420.0,0.00033424,5]
[361962180,1747909871910,-420.0,0.00033424,5]
[361962181,1747909871921,-420.0,0.00033424,5]
[361962182,1747909871933,-420.0,0.00033424,5]
[361962183,1747909871943,-762.43,0.00033424,5]
[361962184,1747909871953,-500.0,0.00033424,30]
[361962185,1747909871963,-420.0,0.00033424,5]
[361962186,1747909871973,-420.0,0.00033424,5]
[361962187,1747909871983,-1023.16,0.00033424,5]
[361962188,1747909871994,-420.0,0.00033424,5]
[361962189,1747909872004,-606.34,0.00033424,5]
[361962190,1747909872014,-420.0,0.00033424,5]
[361962191,1747909872025,-420.0,0.00033424,5]
[361962192,1747909872035,-420.0,0.00033424,5]
[361962193,1747909872044,-535.58,0.00033424,5]
[361962194,1747909872054,-420.0,0.00033424,5]
[361962195,1747909872065,-420.0,0.00033424,5]
[361962196,1747909872075,-151.0,0.00033424,7]
[361962197,1747909872085,-151.0,0.00033424,7]
[361962198,1747909872094,-420.0,0.00033424,5]
[361962199,1747909872104,-151.0,0.00033424,7]
[361962200,1747909872114,-153.83766026,0.00033424,5]
[361962201,1747909872124,-498.95,0.00033424,5]
[361962202,1747909872134,-420.0,0.00033424,5]
[361962203,1747909872144,-542.84,0.00033424,5]
[361962204,1747909872154,-420.0,0.00033424,5]
[361962205,1747909872164,-420.0,0.00033424,5]
[361962206,1747909872173,-420.0,0.00033424,5]
[361962207,1747909872183,-420.0,0.00033424,5]
[361962208,1747909872192,-420.0,0.00033424,5]
[361962209,1747909872202,-517.88,0.00033424,5]
[361962210,1747909872212,-439.6,0.00033424,5]
[361962211,1747909872221,-420.0,0.00033424,5]
[361962212,1747909872232,-420.0,0.00033424,5]
[361962213,1747909872242,-420.0,0.00033424,5]
[361962214,1747909872251,-472.02,0.00033424,5]
[361962215,1747909872261,-760.26,0.00033424,5]
[361962216,1747909872271,-794.11,0.00033424,5]
[361962217,1747909872280,-780.83,0.00033424,5]
[361962218,1747909872290,-420.0,0.00033424,5]
[361962219,1747909872300,-420.0,0.00033424,5]
[361962220,1747909872310,-420.0,0.00033424,5]
[361962221,1747909872321,-420.0,0.00033424,5]
[361962222,1747909872331,-420.0,0.00033424,5]
[361962223,1747909872342,-668.72,0.00033424,5]
[361962224,1747909872352,-474.42,0.00033424,5]
[361962225,1747909872362,-420.0,0.00033424,5]
[361962226,1747909872371,-534.83,0.00033424,5]
[361962227,1747909872381,-1041.82,0.00033424,5]
[361962228,1747909872392,-420.0,0.00033424,5]
[361962229,1747909872403,-420.0,0.00033424,5]
[361962230,1747909872413,-420.0,0.00033424,5]
[361962231,1747909872423,-420.0,0.00033424,5]
[361962232,1747909872433,-190.68286901,0.00033424,5]
[361962233,1747909872445,-702.26,0.00033424,5]
[361962234,1747909872455,-420.0,0.00033424,5]
[361962235,1747909872465,-1222.88,0.00033424,5]
[361962236,1747909872476,-420.0,0.00033424,5]
[361962237,1747909872486,-725.44,0.00033424,5]
[361962238,1747909872498,-420.0,0.00033424,5]
[361962239,1747909872508,-420.0,0.00033424,5]
[361962240,1747909872518,-438.82,0.00033424,5]
[361962241,1747909872528,-420.0,0.00033424,5]
[361962242,1747909872539,-420.0,0.00033424,5]
[361962243,1747909872898,-420.0,0.00033424,5]
[361962244,1747909872919,-420.0,0.00033424,5]
[361962245,1747909872929,-523.63,0.00033424,5]
[361962246,1747909872939,-447.79,0.00033424,5]
[361962247,1747909872949,-572.38,0.00033424,5]
[361962248,1747909872958,-420.0,0.00033424,5]
[361962249,1747909872968,-420.0,0.00033424,5]
[361962250,1747909872978,-482.11098155,0.00033424,5]
[361962251,1747909873028,-407.39901845,0.00033424,5]
[361962252,1747909873038,-420.0,0.00033424,5]
[361962253,1747909873047,-97.47203339,0.00033424,5]
[361962254,1747909873062,-400.0,0.00032876,5]
[361962255,1747909873072,-322.52796661,0.00033424,5]
[361962256,1747909873081,-151.0,0.00033424,7]
[361962257,1747909873090,-420.0,0.00033424,5]
[361962258,1747909873099,-151.0,0.00033424,7]
[361962259,1747909873108,-154.618465,0.00033424,7]
[361962260,1747909873117,-420.0,0.00033424,5]
[361962261,1747909873127,-420.0,0.00033424,5]
[361962262,1747909873136,-1473.64,0.00033424,5]
[361962263,1747909873145,-637.08,0.00033424,5]
[361962264,1747909873154,-1051.45,0.00033424,5]
[361962265,1747909873163,-420.0,0.00033424,5]
[361962266,1747909873173,-439.99,0.00033424,5]
[361962267,1747909873182,-817.39,0.00033424,5]
[361962268,1747909873191,-1378.67,0.00033424,5]
[361962269,1747909873200,-255.39880316,0.00033424,5]
[361962270,1747909873210,-420.0,0.00033424,5]
[361962271,1747909873219,-420.0,0.00033424,5]
[361962272,1747909873228,-1488.84,0.00033424,5]
[361962273,1747909873237,-633.21,0.00033424,5]
[361962274,1747909873247,-539.09,0.00033424,5]
[361962275,1747909873256,-420.0,0.00033424,5]
[361962276,1747909873265,-552.8,0.00033424,5]
[361962277,1747909873274,-589.3,0.00033424,5]
[361962278,1747909873283,-1121.96,0.00033424,5]
[361962279,1747909873293,-420.0,0.00033424,5]
[361962280,1747909873302,-1529.355431,0.00033424,7]
[361962281,1747909873313,-1529.355431,0.00033424,7]
[361962282,1747909873322,-420.0,0.00033424,5]
[361962283,1747909873331,-1529.355431,0.00033424,7]
[361962284,1747909873340,-276.37768002,0.00033424,5]
[361962285,1747909873350,-158.707111,0.00033424,7]
[361962286,1747909873359,-1337.81,0.00033424,5]
[361962287,1747909873368,-805.09,0.00033424,5]
[361962288,1747909873377,-420.0,0.00033424,5]
[361962289,1747909873387,-420.0,0.00033424,5]
[361962290,1747909873396,-420.0,0.00033424,5]
[361962291,1747909873405,-638.44,0.00033424,5]
[361962292,1747909873415,-517.61,0.00033424,5]
[361962293,1747909873424,-1034.88,0.00033424,5]
[361962294,1747909873433,-420.0,0.00033424,5]
[361962295,1747909873444,-808.43,0.00033424,5]
[361962296,1747909873453,-420.0,0.00033424,5]
[361962297,1747909873462,-439.92,0.00033424,5]
[361962298,1747909873473,-727.42,0.00033424,5]
[361962299,1747909873483,-517.92,0.00033424,5]
[361962300,1747909873492,-420.0,0.00033424,5]
[361962301,1747909873501,-420.0,0.00033424,5]
[361962302,1747909873510,-426.47,0.00033424,5]
[361962303,1747909873519,-956.03,0.00033424,5]
[361962304,1747909873528,-420.0,0.00033424,5]
[361962305,1747909873538,-420.0,0.00033424,5]
[361962306,1747909873547,-420.0,0.00033424,5]
[361962307,1747909873557,-420.0,0.00033424,5]
[361962308,1747909873569,-420.0,0.00033424,5]
[361962309,1747909873578,-420.0,0.00033424,5]
[361962310,1747909873588,-1255.39,0.00033424,5]
[361962311,1747909873598,-650.98,0.00033424,5]
[361962312,1747909873607,-1283.02,0.00033424,5]
[361962313,1747909873617,-420.0,0.00033424,5]
[361962314,1747909873626,-420.0,0.00033424,5]
[361962315,1747909873635,-420.0,0.00033424,5]
[361962316,1747909873645,-420.0,0.00033424,5]
[361962317,1747909873655,-420.0,0.00033424,5]
[361962318,1747909873665,-420.0,0.00033424,5]
[361962319,1747909873675,-1136.91,0.00033424,5]
[361962320,1747909873684,-768.82,0.00033424,5]
[361962321,1747909873694,-420.0,0.00033424,5]
[361962322,1747909873704,-420.0,0.00033424,5]
[361962323,1747909873715,-1670.03,0.00033424,5]
[361962324,1747909873726,-1148.31,0.00033424,5]
[361962325,1747909873736,-420.0,0.00033424,5]
[361962326,1747909873747,-171.22387727,0.00033424,7]
[361962327,1747909873757,-1296.22,0.00033424,5]
[361962328,1747909873766,-737.33,0.00033424,5]
[361962329,1747909873776,-420.0,0.00033424,5]
[361962330,1747909873786,-420.0,0.00033424,5]
[361962331,1747909873796,-1541.01,0.00033424,5]
[361962332,1747909873805,-420.0,0.00033424,5]
[361962333,1747909873815,-420.0,0.00033424,5]
[361962334,1747909873824,-847.05,0.00033424,5]
[361962335,1747909873834,-1201.46,0.00033424,5]
[361962336,1747909873843,-420.0,0.00033424,5]
[361962337,1747909873852,-819.24,0.00033424,5]
[361962338,1747909873862,-539.94,0.00033424,5]
[361962339,1747909873872,-420.0,0.00033424,5]
[361962340,1747909873882,-1447.32,0.00033424,5]
[361962341,1747909873892,-420.0,0.00033424,5]
[361962342,1747909873902,-1204.29,0.00033424,5]
[361962343,1747909873911,-420.0,0.00033424,5]
[361962344,1747909873921,-1296.37,0.00033424,5]
[361962345,1747909873930,-420.0,0.00033424,5]
[361962346,1747909873940,-999.19,0.00033424,5]
[361962347,1747909873950,-1015.36,0.00033424,5]
[361962348,1747909873960,-420.0,0.00033424,5]
[361962349,1747909873969,-536.33,0.00033424,5]
[361962350,1747909873979,-420.0,0.00033424,5]
[361962351,1747909873988,-1499.61,0.00033424,5]
[361962352,1747909873997,-420.0,0.00033424,5]
[361962353,1747909874007,-420.0,0.00033424,5]
[361962354,1747909874016,-2079.1,0.00033424,5]
[361962355,1747909874025,-1067.48,0.00033424,5]
[361962356,1747909874035,-1000.44,0.00033424,5]
[361962357,1747909874045,-1104.35,0.00033424,5]
[361962358,1747909874054,-420.0,0.00033424,5]
[361962359,1747909874064,-420.0,0.00033424,5]
[361962360,1747909874073,-151.0,0.00033424,7]
[361962361,1747909874083,-420.0,0.00033424,5]
[361962362,1747909874092,-1028.24,0.00033424,5]
[361962363,1747909874101,-838.98,0.00033424,5]
[361962364,1747909874110,-1001.78,0.00033424,5]
[361962365,1747909874120,-420.0,0.00033424,5]
[361962366,1747909874134,-420.0,0.00033424,5]
[361962367,1747909874144,-420.0,0.00033424,5]
[361962368,1747909874153,-546.83,0.00033424,5]
[361962369,1747909874162,-639.61,0.00033424,5]
[361962370,1747909874173,-965.62,0.00033424,5]
[361962371,1747909874183,-420.0,0.00033424,5]
[361962372,1747909874192,-622.89,0.00033424,5]
[361962373,1747909874202,-420.0,0.00033424,5]
[361962374,1747909874211,-443.71,0.00033424,5]
[361962375,1747909874221,-924.96,0.00033424,5]
[361962376,1747909874231,-420.0,0.00033424,5]
[361962377,1747909874240,-420.0,0.00033424,5]
[361962378,1747909874250,-420.0,0.00033424,5]
[361962379,1747909874259,-274.73393127,0.00033424,5]
[361962380,1747909874269,-614.68,0.00033424,5]
[361962381,1747909874278,-1581.08,0.00033424,5]
[361962382,1747909874288,-420.0,0.00033424,5]
[361962383,1747909874297,-427.59,0.00033424,5]
[361962384,1747909874307,-420.0,0.00033424,5]
[361962385,1747909874318,-1182.55,0.00033424,5]
[361962386,1747909874328,-420.0,0.00033424,5]
[361962387,1747909874337,-1474.03,0.00033424,5]
[361962388,1747909874347,-718.31,0.00033424,5]
[361962389,1747909874356,-420.0,0.00033424,5]
[361962390,1747909874365,-948.3,0.00033424,5]
[361962391,1747909874375,-420.0,0.00033424,5]
[361962392,1747909874384,-552.08,0.00033424,5]
[361962393,1747909874394,-420.0,0.00033424,5]
[361962394,1747909874404,-720.62,0.00033424,5]
[361962395,1747909874415,-420.0,0.00033424,5]
[361962396,1747909874426,-242.800336,0.00033424,7]
[361962397,1747909874436,-1435.02,0.00033424,5]
[361962398,1747909874446,-1086.93,0.00033424,5]
[361962399,1747909874456,-420.0,0.00033424,5]
[361962400,1747909874466,-566.41,0.00033424,5]
[361962401,1747909874475,-1317.18,0.00033424,5]
[361962402,1747909874485,-806.08,0.00033424,5]
[361962403,1747909874494,-420.0,0.00033424,5]
[361962404,1747909874503,-522.57,0.00033424,5]
[361962405,1747909874513,-1839.09,0.00033424,5]
[361962406,1747909874523,-432.55,0.00033424,5]
[361962407,1747909874532,-420.0,0.00033424,5]
[361962408,1747909874541,-1126.17,0.00033424,5]
[361962409,1747909874551,-691.58,0.00033424,5]
[361962410,1747909874560,-827.55,0.00033424,5]
[361962411,1747909874571,-420.0,0.00033424,5]
[361962412,1747909874581,-1223.19,0.00033424,5]
[361962413,1747909874591,-420.0,0.00033424,5]
[361962414,1747909874600,-1338.71,0.00033424,5]
[361962415,1747909874611,-420.0,0.00033424,5]
[361962416,1747909874620,-420.0,0.00033424,5]
[361962417,1747909874630,-420.0,0.00033424,5]
[361962418,1747909874639,-1616.45,0.00033424,5]
[361962419,1747909874649,-916.38,0.00033424,5]
[361962420,1747909874659,-899.12,0.00033424,5]
[361962421,1747909874668,-1499.24,0.00033424,5]
[361962422,1747909874678,-1013.48,0.00033424,5]
[361962423,1747909874687,-818.79,0.00033424,5]
[361962424,1747909874697,-489.15,0.00033424,5]
[361962425,1747909874708,-862.69,0.00033424,5]
[361962426,1747909874719,-812.07,0.00033424,5]
[361962427,1747909874729,-1098.11,0.00033424,5]
[361962428,1747909874738,-777.76,0.00033424,5]
[361962429,1747909874748,-420.0,0.00033424,5]
[361962430,1747909874758,-468.73,0.00033424,5]
[361962431,1747909874768,-159.11807153,0.00033424,5]
[361962432,1747909874778,-534.41,0.00033424,5]
[361962433,1747909874789,-582.76,0.00033424,5]
[361962434,1747909874798,-687.71,0.00033424,5]
[361962435,1747909874808,-468.52,0.00033424,5]
[361962436,1747909874820,-467.63,0.00033424,5]
[361962437,1747909874830,-420.0,0.00033424,5]
[361962438,1747909874840,-828.19,0.00033424,5]
[361962439,1747909874850,-420.0,0.00033424,5]
[361962440,1747909874859,-908.46,0.00033424,5]
[361962441,1747909874869,-420.0,0.00033424,5]
[361962442,1747909874880,-2809.1,0.00033424,5]
[361962443,1747909874890,-420.0,0.00033424,5]
[361962444,1747909874900,-864.54,0.00033424,5]
[361962445,1747909874909,-570.59,0.00033424,5]
[361962446,1747909874919,-420.0,0.00033424,5]
[361962447,1747909874928,-1103.33,0.00033424,5]
[361962448,1747909874938,-420.0,0.00033424,5]
[361962449,1747909874947,-420.0,0.00033424,5]
[361962450,1747909874957,-420.0,0.00033424,5]
[361962451,1747909874966,-420.0,0.00033424,5]
[361962452,1747909874975,-389.94200811,0.00033424,5]
[361962453,1747909874985,-420.0,0.00033424,5]
[361962454,1747909874994,-420.0,0.00033424,5]
[361962455,1747909875004,-420.0,0.00033424,5]
[361962456,1747909875014,-420.0,0.00033424,5]
[361962457,1747909875024,-703.54,0.00033424,5]
[361962458,1747909875033,-420.0,0.00033424,5]
[361962459,1747909875042,-481.07,0.00033424,5]
[361962460,1747909875053,-420.0,0.00033424,5]
[361962461,1747909875063,-2518.19,0.00033424,5]
[361962462,1747909875076,-420.0,0.00033424,5]
[361962463,1747909875085,-547.24,0.00033424,5]
[361962464,1747909875095,-988.51,0.00033424,5]
[361962465,1747909875105,-420.0,0.00033424,5]
[361962466,1747909875114,-420.0,0.00033424,5]
[361962467,1747909875124,-1179.37,0.00033424,5]
[361962468,1747909875134,-1022.92,0.00033424,5]
[361962469,1747909875143,-1076.32,0.00033424,5]
[361962470,1747909875154,-420.0,0.00033424,5]
[361962471,1747909875163,-483.94,0.00033424,5]
[361962472,1747909875294,-597.5,0.00033424,5]
[361962473,1747909875304,-630.59,0.00033424,5]
[361962474,1747909875314,-420.0,0.00033424,5]
[361962475,1747909875324,-977.17,0.00033424,5]
[361962476,1747909875334,-674.37,0.00033424,5]
[361962477,1747909875343,-1291.55,0.00033424,5]
[361962478,1747909875353,-420.0,0.00033424,5]
[361962479,1747909875363,-420.0,0.00033424,5]
[361962480,1747909875372,-859.12,0.00033424,5]
[361962481,1747909875381,-982.17,0.00033424,5]
[361962482,1747909875391,-1107.11,0.00033424,5]
[361962483,1747909875399,-420.0,0.00033424,5]
[361962484,1747909875409,-445.71,0.00033424,5]
[361962485,1747909875418,-420.0,0.00033424,5]
[361962486,1747909875428,-792.97,0.00033424,5]
[361962487,1747909875437,-495.5,0.00033424,5]
[361962488,1747909875448,-420.0,0.00033424,5]
[361962489,1747909875457,-420.0,0.00033424,5]
[361962490,1747909875466,-552.84,0.00033424,5]
[361962491,1747909875475,-1360.08,0.00033424,5]
[361962492,1747909875485,-453.26,0.00033424,5]
[361962493,1747909875494,-420.0,0.00033424,5]
[361962494,1747909875504,-420.0,0.00033424,5]
[361962495,1747909875513,-1000.0,0.00033424,30]
[361962496,1747909875523,-222.96457195,0.00033424,5]
[361962497,1747909875532,-1166.1,0.00033424,5]
[361962498,1747909875541,-670.72,0.00033424,5]
[361962499,1747909875551,-420.0,0.00033424,5]
[361962500,1747909875561,-420.0,0.00033424,5]
[361962501,1747909875572,-420.0,0.00033424,5]
[361962502,1747909875581,-562.86,0.00033424,5]
[361962503,1747909875590,-420.0,0.00033424,5]
[361962504,1747909875600,-420.0,0.00033424,5]
[361962505,1747909875609,-420.0,0.00033424,5]
[361962506,1747909875618,-943.26,0.00033424,5]
[361962507,1747909875628,-957.93,0.00033424,5]
[361962508,1747909875638,-1932.8,0.00033424,5]
[361962509,1747909875647,-420.0,0.00033424,5]
[361962510,1747909875656,-420.0,0.00033424,5]
[361962511,1747909875666,-420.0,0.00033424,5]
[361962512,1747909875675,-557.01971621,0.00033424,5]
[361962513,1747909875684,-670.47,0.00033424,5]
[361962514,1747909875694,-568.8,0.00033424,5]
[361962515,1747909875704,-420.0,0.00033424,5]
[361962516,1747909875719,-1355.23,0.00033424,5]
[361962517,1747909875729,-420.0,0.00033424,5]
[361962518,1747909875740,-500.0,0.00033424,5]
[361962519,1747909875750,-456.16,0.00033424,5]
[361962520,1747909875761,-420.0,0.00033424,5]
[361962521,1747909875773,-420.0,0.00033424,5]
[361962522,1747909875784,-515.33204227,0.00033424,5]
[361962523,1747909875794,-420.0,0.00033424,5]
[361962524,1747909875805,-1051.47,0.00033424,5]
[361962525,1747909875817,-199.34272986,0.00033424,5]
[361962526,1747909875832,-420.0,0.00033424,5]
[361962527,1747909875843,-420.0,0.00033424,5]
[361962528,1747909875853,-420.0,0.00033424,5]
[361962529,1747909875863,-1412.85,0.00033424,5]
[361962530,1747909875874,-494.1,0.00033424,5]
[361962531,1747909875884,-1321.79,0.00033424,5]
[361962532,1747909875895,-1017.29,0.00033424,5]
[361962533,1747909875906,-632.6,0.00033424,5]
[361962534,1747909875916,-420.0,0.00033424,5]
[361962535,1747909875926,-974.04,0.00033424,5]
[361962536,1747909875936,-1202.89,0.00033424,5]
[361962537,1747909875945,-420.0,0.00033424,5]
[361962538,1747909875955,-2472.18,0.00033424,5]
[361962539,1747909875964,-739.7,0.00033424,5]
[361962540,1747909875974,-420.0,0.00033424,5]
[361962541,1747909875984,-1001.7,0.00033424,5]
[361962542,1747909875993,-681.52563023,0.00033424,5]
[361962543,1747909876020,-302.0,0.00033424,5]
[361962544,1747909876032,-556.02436977,0.00033424,5]
[361962545,1747909876041,-420.0,0.00033424,5]
[361962546,1747909876051,-689.75,0.00033424,5]
[361962547,1747909876061,-500.1,0.00033424,5]
[361962548,1747909876074,-927.84,0.00033424,5]
[361962549,1747909876083,-420.0,0.00033424,5]
[361962550,1747909876093,-420.0,0.00033424,5]
[361962551,1747909876103,-465.83092828,0.00033424,5]
[361962552,1747909876112,-667.58,0.00033424,5]
[361962553,1747909876121,-420.0,0.00033424,5]
[361962554,1747909876130,-420.0,0.00033424,5]
[361962555,1747909876139,-1673.4,0.00033424,5]
[361962556,1747909876149,-420.0,0.00033424,5]
[361962557,1747909876158,-420.0,0.00033424,5]
[361962558,1747909876167,-420.0,0.00033424,5]
[361962559,1747909876176,-723.91,0.00033424,5]
[361962560,1747909876186,-549.59,0.00033424,5]
[361962561,1747909876195,-272.74306422,0.00033424,5]
[361962562,1747909876204,-679.23163773,0.00033424,5]
[361962563,1747909876216,-325.20836227,0.00033424,5]
[361962564,1747909876226,-385.61061848,0.00033424,5]
[361962565,1747909876241,-34.38938152,0.00033424,5]
[361962566,1747909876250,-664.88263277,0.00033424,5]
[361962567,1747909876261,-15.43736723,0.00033424,5]
[361962568,1747909876271,-491.87848241,0.00033424,5]
[361962569,1747909876282,-938.88151759,0.00033424,5]
[361962570,1747909876291,-633.3,0.00033424,5]
[361962571,1747909876301,-157.06457946,0.00033424,5]
[361962572,1747909876312,-262.93542054,0.00033424,5]
[361962573,1747909876324,-449.74657946,0.00033424,5]
[361962574,1747909876335,-64.45342054,0.00033424,5]
[361962575,1747909876344,-528.84,0.00033424,5]
[361962576,1747909876354,-445.36,0.00033424,5]
[361962577,1747909876363,-461.56,0.00033424,5]
[361962578,1747909876373,-737.68,0.00033424,5]
[361962579,1747909876382,-420.0,0.00033424,5]
[361962580,1747909876391,-754.02,0.00033424,5]
[361962581,1747909876400,-420.0,0.00033424,5]
[361962582,1747909876410,-434.86,0.00033424,5]
[361962583,1747909876419,-942.23,0.00033424,5]
[361962584,1747909876429,-1623.37,0.00033424,5]
[361962585,1747909876438,-1521.77,0.00033424,5]
[361962586,1747909876447,-488.94,0.00033424,5]
[361962587,1747909876457,-1026.75,0.00033424,5]
[361962588,1747909876466,-570.18,0.00033424,5]
[361962589,1747909876477,-420.0,0.00033424,5]
[361962590,1747909876486,-420.0,0.00033424,5]
[361962591,1747909876495,-1180.44,0.00033424,5]
[361962592,1747909876505,-1035.02,0.00033424,5]
[361962593,1747909876515,-686.58,0.00033424,5]
[361962594,1747909876525,-151.0,0.00033424,7]
[361962595,1747909876535,-151.0,0.00033424,7]
[361962596,1747909876545,-151.0,0.00033424,7]
[361962597,1747909876555,-536.54,0.00033424,5]
[361962598,1747909876568,-420.0,0.00033424,5]
[361962599,1747909876578,-969.79,0.00033424,5]
[361962600,1747909876588,-420.0,0.00033424,5]
[361962601,1747909876598,-420.0,0.00033424,5]
[361962602,1747909876610,-1095.35,0.00033424,5]
[361962603,1747909876621,-758.01,0.00033424,5]
[361962604,1747909876633,-259.7484,0.00033424,7]
[361962605,1747909876643,-259.7484,0.00033424,7]
[361962606,1747909876653,-635.59,0.00033424,5]
[361962607,1747909876664,-420.0,0.00033424,5]
[361962608,1747909876674,-2000.0,0.00033424,5]
[361962609,1747909876684,-259.7484,0.00033424,7]
[361962610,1747909876694,-1450.2,0.00033424,5]
[361962611,1747909876704,-678.19,0.00033424,5]
[361962612,1747909876717,-1419.33,0.00033424,5]
[361962613,1747909876727,-259.7484,0.00033424,7]
[361962614,1747909876737,-420.0,0.00033424,5]
[361962615,1747909876748,-420.0,0.00033424,5]
[361962616,1747909876759,-259.7484,0.00033424,7]
[361962617,1747909876784,-259.7484,0.00033424,7]
[361962618,1747909876797,-1172.82,0.00033424,5]
[361962619,1747909876808,-967.12,0.00033424,5]
[361962620,1747909876821,-784.18,0.00033424,5]
[361962621,1747909876832,-151.0,0.00033424,7]
[361962622,1747909876843,-151.0,0.00033424,7]
[361962623,1747909876854,-1633.21,0.00033424,5]
[361962624,1747909876864,-151.0,0.00033424,7]
[361962625,1747909876874,-420.0,0.00033424,5]
[361962626,1747909876884,-429.32,0.00033424,5]
[361962627,1747909876894,-1004.55,0.00033424,5]
[361962628,1747909876904,-1265.28,0.00033424,5]
[361962629,1747909876914,-515.86,0.00033424,5]
[361962630,1747909876924,-550.42,0.00033424,5]
[361962631,1747909876934,-420.0,0.00033424,5]
[361962632,1747909876943,-681.87,0.00033424,5]
[361962633,1747909876953,-420.0,0.00033424,5]
[361962634,1747909876963,-420.0,0.00033424,5]
[361962635,1747909876972,-328.413703,0.00033424,7]
[361962636,1747909876982,-328.413703,0.00033424,7]
[361962637,1747909876991,-328.413703,0.00033424,7]
[361962638,1747909877001,-1417.22,0.00033424,5]
[361962639,1747909877011,-499.27,0.00033424,5]
[361962640,1747909877020,-540.61,0.00033424,5]
[361962641,1747909877030,-462.08,0.00033424,5]